[Event "Titled Tuesday Blitz September 27 Late 2022"]
[White "Salman, Pavel"]
[Black "Nogerbek, Kazybek"]
[WhiteFideId "24153753"]
[BlackFideId "13710427"]
[WhiteElo "2039"]
[BlackElo "2458"]
[Result "0-1"]
[Round "01"]
[TimeControl "180+1"]
[Date "2022.09.27"]
[WhiteClock "0:00:03"]
[BlackClock "0:00:10"]

1. Nf3 {[%clk 0:03:00]}  c5 {[%clk 0:02:58]} 2. g3 {[%clk 0:03:01]}  b5 {[%clk 0:02:53]} 3. Bg2 {[%clk 0:03:02]}  Bb7 {[%clk 0:02:54]} 4. O-O {[%clk 0:03:02]}  Nf6 {[%clk 0:02:54]} 5. d3 {[%clk 0:03:02]}  e6 {[%clk 0:02:54]} 6. Nbd2 {[%clk 0:03:02]}  Be7 {[%clk 0:02:54]} 7. e4 {[%clk 0:03:03]}  d5 {[%clk 0:02:55]} 8. Re1 {[%clk 0:03:02]}  Nc6 {[%clk 0:02:54]} 9. h4 {[%clk 0:02:59]}  a5 {[%clk 0:02:52]} 10. a3 {[%clk 0:02:58]}  h6 {[%clk 0:02:50]} 11. Qe2 {[%clk 0:02:50]}  Qc7 {[%clk 0:02:48]} 12. c3 {[%clk 0:02:50]}  O-O {[%clk 0:02:40]} 13. e5 {[%clk 0:02:47]}  Nd7 {[%clk 0:02:40]} 14. Nf1 {[%clk 0:02:48]}  b4 {[%clk 0:02:41]} 15. g4 {[%clk 0:02:43]}  Ba6 {[%clk 0:02:31]} 16. g5 {[%clk 0:02:37]}  h5 {[%clk 0:02:26]} 17. Ng3 {[%clk 0:02:18]}  g6 {[%clk 0:02:26]} 18. Bf4 {[%clk 0:02:17]}  bxa3 {[%clk 0:02:15]} 19. bxa3 {[%clk 0:02:15]}  Rab8 {[%clk 0:02:15]} 20. Nh2 {[%clk 0:02:08]}  Kg7 {[%clk 0:02:12]} 21. Bf3 {[%clk 0:02:04]}  Rb3 {[%clk 0:02:08]} 22. Bxh5 {[%clk 0:02:01]}  Rxc3 {[%clk 0:01:59]} 23. Bf3 {[%clk 0:01:54]}  Nd4 {[%clk 0:01:56]} 24. Qf1 {[%clk 0:01:43]}  Bxd3 {[%clk 0:01:35]} 25. Qg2 {[%clk 0:01:43]}  Qd8 {[%clk 0:01:25]} 26. Rac1 {[%clk 0:01:31]}  Rxc1 {[%clk 0:01:19]} 27. Rxc1 {[%clk 0:01:29]}  c4 {[%clk 0:01:18]} 28. Ng4 {[%clk 0:01:26]}  Rh8 {[%clk 0:01:13]} 29. Nh6 {[%clk 0:01:25]}  Bxa3 {[%clk 0:01:08]} 30. Re1 {[%clk 0:01:16]}  Bb4 {[%clk 0:01:03]} 31. Re3 {[%clk 0:01:08]}  Nc2 {[%clk 0:00:57]} 32. h5 {[%clk 0:01:02]}  Nxe3 {[%clk 0:00:57]} 33. Bxe3 {[%clk 0:00:59]}  c3 {[%clk 0:00:51]} 34. hxg6 {[%clk 0:00:55]}  Bxg6 {[%clk 0:00:50]} 35. Nh5+ {[%clk 0:00:51]}  Kf8 {[%clk 0:00:50]} 36. Qg4 {[%clk 0:00:42]}  Nxe5 {[%clk 0:00:40]} 37. Qf4 {[%clk 0:00:24]}  Nxf3+ {[%clk 0:00:40]} 38. Qxf3 {[%clk 0:00:25]}  c2 {[%clk 0:00:31]} 39. Nf6 {[%clk 0:00:24]}  d4 {[%clk 0:00:26]} 40. Bf4 {[%clk 0:00:21]}  d3 {[%clk 0:00:17]} 41. Qc6 {[%clk 0:00:21]}  d2 {[%clk 0:00:14]} 42. Nd7+ {[%clk 0:00:21]}  Qxd7 {[%clk 0:00:12]} 43. Qa8+ {[%clk 0:00:17]}  Qe8 {[%clk 0:00:12]} 44. Qa7 {[%clk 0:00:03]}  d1=Q+ {[%clk 0:00:12]} 45. Kg2 {[%clk 0:00:04]}  Qd5+ {[%clk 0:00:12]} 46. f3 {[%clk 0:00:03]}  Rxh6 {[%clk 0:00:09]} 47. gxh6 {[%clk 0:00:03]}  Qf5 {[%clk 0:00:08]} 48. Kg3 {[%clk 0:00:03]}  Qxf4+ {[%clk 0:00:08]} 49. Kxf4 {[%clk 0:00:04]}  c1=Q+ {[%clk 0:00:09]} 50. Kg3 {[%clk 0:00:05]}  Qg5+ {[%clk 0:00:09]} 51. Kf2 {[%clk 0:00:05]}  Bc5+ {[%clk 0:00:09]} 52. Ke2 {[%clk 0:00:04]}  Qe3+ {[%clk 0:00:09]} 53. Kd1 {[%clk 0:00:04]}  Qd8+ {[%clk 0:00:10]} 54. Qd7 {[%clk 0:00:03]}  Qxd7# {[%clk 0:00:10]} 0-1


[Site "https://www.chess.com"]

[Event "Titled Tuesday Blitz September 27 Late 2022"]
[White "So, Wesley"]
[Black "Ekdyshman, Mikhail"]
[WhiteFideId "5202213"]
[BlackFideId "4149416"]
[WhiteElo "2763"]
[BlackElo "2146"]
[Result "1-0"]
[Round "01"]
[TimeControl "180+1"]
[Date "2022.09.27"]
[WhiteClock "0:01:03"]
[BlackClock "0:00:21"]

1. Nf3 {[%clk 0:03:00]}  c5 {[%clk 0:02:55]} 2. e4 {[%clk 0:02:57]}  g6 {[%clk 0:02:55]} 3. c3 {[%clk 0:02:55]}  Bg7 {[%clk 0:02:54]} 4. d4 {[%clk 0:02:55]}  cxd4 {[%clk 0:02:53]} 5. cxd4 {[%clk 0:02:56]}  d5 {[%clk 0:02:52]} 6. e5 {[%clk 0:02:56]}  Nc6 {[%clk 0:02:47]} 7. Bb5 {[%clk 0:02:54]}  Nh6 {[%clk 0:02:38]} 8. O-O {[%clk 0:02:47]}  O-O {[%clk 0:02:36]} 9. h3 {[%clk 0:02:44]}  a6 {[%clk 0:02:28]} 10. Bxc6 {[%clk 0:02:44]}  bxc6 {[%clk 0:02:29]} 11. Re1 {[%clk 0:02:39]}  Bf5 {[%clk 0:02:22]} 12. Nc3 {[%clk 0:02:39]}  Qa5 {[%clk 0:02:16]} 13. Bd2 {[%clk 0:02:38]}  f6 {[%clk 0:02:14]} 14. Na4 {[%clk 0:02:16]}  Qc7 {[%clk 0:02:08]} 15. Nc5 {[%clk 0:02:00]}  Nf7 {[%clk 0:01:53]} 16. Bf4 {[%clk 0:01:57]}  fxe5 {[%clk 0:01:50]} 17. Nxe5 {[%clk 0:01:57]}  Nd6 {[%clk 0:01:43]} 18. Rc1 {[%clk 0:01:52]}  Bc8 {[%clk 0:01:33]} 19. Ncd3 {[%clk 0:01:37]}  Bb7 {[%clk 0:01:19]} 20. Bh2 {[%clk 0:01:34]}  Rac8 {[%clk 0:01:13]} 21. Qg4 {[%clk 0:01:33]}  Kh8 {[%clk 0:01:04]} 22. Nf4 {[%clk 0:01:31]}  Qb6 {[%clk 0:00:53]} 23. Nexg6+ {[%clk 0:01:28]}  hxg6 {[%clk 0:00:51]} 24. Nxg6+ {[%clk 0:01:29]}  Kh7 {[%clk 0:00:41]} 25. Bxd6 {[%clk 0:01:27]}  exd6 {[%clk 0:00:29]} 26. Qh5+ {[%clk 0:01:25]}  Bh6 {[%clk 0:00:22]} 27. Re7+ {[%clk 0:01:05]}  Kg8 {[%clk 0:00:21]} 28. Qxh6 {[%clk 0:01:03]} 1-0


[Site "https://www.chess.com"]

[Event "Titled Tuesday Blitz September 27 Late 2022"]
[White "Spitzl, Vinzent"]
[Black "Saraci, Nderim"]
[WhiteFideId "12901253"]
[BlackFideId "6351921"]
[WhiteElo "2160"]
[BlackElo "2553"]
[Result "0-1"]
[Round "01"]
[TimeControl "180+1"]
[Date "2022.09.28"]
[WhiteClock "0:00:09"]
[BlackClock "0:01:09"]

1. e4 {[%clk 0:03:00]}  c5 {[%clk 0:02:57]} 2. Nf3 {[%clk 0:03:00]}  Nc6 {[%clk 0:02:57]} 3. d4 {[%clk 0:03:00]}  cxd4 {[%clk 0:02:57]} 4. Nxd4 {[%clk 0:03:00]}  g6 {[%clk 0:02:58]} 5. c4 {[%clk 0:02:55]}  Bg7 {[%clk 0:02:58]} 6. Be3 {[%clk 0:02:52]}  d6 {[%clk 0:02:59]} 7. Nc3 {[%clk 0:02:50]}  Nf6 {[%clk 0:02:59]} 8. Be2 {[%clk 0:02:50]}  O-O {[%clk 0:03:00]} 9. O-O {[%clk 0:02:49]}  Bd7 {[%clk 0:03:01]} 10. Qd2 {[%clk 0:02:48]}  Nxd4 {[%clk 0:03:01]} 11. Bxd4 {[%clk 0:02:47]}  Bc6 {[%clk 0:03:01]} 12. f3 {[%clk 0:02:47]}  a5 {[%clk 0:03:01]} 13. b3 {[%clk 0:02:17]}  Nd7 {[%clk 0:03:01]} 14. Be3 {[%clk 0:02:17]}  Nc5 {[%clk 0:03:01]} 15. Rab1 {[%clk 0:02:12]}  Qb6 {[%clk 0:03:01]} 16. Rfc1 {[%clk 0:02:06]}  Rfc8 {[%clk 0:03:01]} 17. Nd5 {[%clk 0:01:50]}  Bxd5 {[%clk 0:02:38]} 18. cxd5 {[%clk 0:01:50]}  Qb4 {[%clk 0:02:37]} 19. Rc2 {[%clk 0:01:32]}  Nd7 {[%clk 0:02:23]} 20. Rbc1 {[%clk 0:01:26]}  Rxc2 {[%clk 0:02:20]} 21. Qxc2 {[%clk 0:01:19]}  Bd4 {[%clk 0:02:18]} 22. Qd3 {[%clk 0:01:12]}  Bxe3+ {[%clk 0:02:17]} 23. Qxe3 {[%clk 0:01:13]}  a4 {[%clk 0:02:17]} 24. Qc3 {[%clk 0:01:08]}  Qb6+ {[%clk 0:02:13]} 25. Kf1 {[%clk 0:01:06]}  axb3 {[%clk 0:02:14]} 26. Qxb3 {[%clk 0:01:04]}  Qa7 {[%clk 0:01:19]} 27. Rc2 {[%clk 0:00:56]}  Nc5 {[%clk 0:01:19]} 28. Qb4 {[%clk 0:00:47]}  Qa3 {[%clk 0:01:17]} 29. Qxa3 {[%clk 0:00:44]}  Rxa3 {[%clk 0:01:18]} 30. Kf2 {[%clk 0:00:37]}  Kg7 {[%clk 0:01:18]} 31. Bc4 {[%clk 0:00:28]}  f5 {[%clk 0:01:18]} 32. exf5 {[%clk 0:00:25]}  gxf5 {[%clk 0:01:19]} 33. f4 {[%clk 0:00:24]}  Kf6 {[%clk 0:01:15]} 34. h3 {[%clk 0:00:17]}  h5 {[%clk 0:01:15]} 35. Re2 {[%clk 0:00:14]}  Rc3 {[%clk 0:01:13]} 36. Bb5 {[%clk 0:00:12]}  Ne4+ {[%clk 0:01:10]} 37. Kg1 {[%clk 0:00:12]}  h4 {[%clk 0:01:08]} 38. Ba4 {[%clk 0:00:10]}  Rc1+ {[%clk 0:01:08]} 39. Kh2 {[%clk 0:00:09]}  Ng3 {[%clk 0:01:09]} 40. Re6+ {[%clk 0:00:09]}  Kf7 {[%clk 0:01:09]} 0-1


[Site "https://www.chess.com"]

[Event "Titled Tuesday Blitz September 27 Late 2022"]
[White "Vlassov, Nikolai"]
[Black "Kobla, Vishal"]
[WhiteFideId "4103360"]
[BlackFideId "2078457"]
[WhiteElo "2324"]
[BlackElo "1972"]
[Result "1-0"]
[Round "01"]
[TimeControl "180+1"]
[Date "2022.09.28"]
[WhiteClock "0:00:04"]
[BlackClock "0:00:04"]

1. e4 {[%clk 0:02:58]}  c5 {[%clk 0:02:59]} 2. c3 {[%clk 0:02:58]}  Nf6 {[%clk 0:02:58]} 3. e5 {[%clk 0:02:58]}  Nd5 {[%clk 0:02:27]} 4. d4 {[%clk 0:02:57]}  cxd4 {[%clk 0:02:27]} 5. cxd4 {[%clk 0:02:57]}  Nc6 {[%clk 0:02:27]} 6. Nc3 {[%clk 0:02:57]}  Nxc3 {[%clk 0:02:25]} 7. bxc3 {[%clk 0:02:58]}  d6 {[%clk 0:02:26]} 8. f4 {[%clk 0:02:58]}  g6 {[%clk 0:02:24]} 9. Nf3 {[%clk 0:02:58]}  Bg7 {[%clk 0:02:25]} 10. Bd3 {[%clk 0:02:57]}  O-O {[%clk 0:02:25]} 11. O-O {[%clk 0:02:57]}  Bg4 {[%clk 0:02:24]} 12. Be3 {[%clk 0:02:55]}  dxe5 {[%clk 0:02:18]} 13. fxe5 {[%clk 0:02:54]}  Rc8 {[%clk 0:02:13]} 14. Qe1 {[%clk 0:02:49]}  Bxf3 {[%clk 0:02:10]} 15. Rxf3 {[%clk 0:02:48]}  Nxe5 {[%clk 0:02:05]} 16. dxe5 {[%clk 0:02:45]}  Qxd3 {[%clk 0:02:06]} 17. Bc5 {[%clk 0:02:05]}  Qd5 {[%clk 0:01:40]} 18. Bxe7 {[%clk 0:01:38]}  Rfe8 {[%clk 0:01:39]} 19. Rd1 {[%clk 0:01:37]}  Qxe5 {[%clk 0:01:27]} 20. Qxe5 {[%clk 0:01:33]}  Bxe5 {[%clk 0:01:28]} 21. Rd7 {[%clk 0:01:25]}  Rc7 {[%clk 0:01:16]} 22. Rxc7 {[%clk 0:01:25]}  Bxc7 {[%clk 0:01:17]} 23. Bf6 {[%clk 0:01:25]}  h5 {[%clk 0:01:15]} 24. h3 {[%clk 0:01:24]}  Re6 {[%clk 0:01:15]} 25. g4 {[%clk 0:01:13]}  hxg4 {[%clk 0:01:08]} 26. hxg4 {[%clk 0:01:13]}  Be5 {[%clk 0:00:56]} 27. Bxe5 {[%clk 0:00:42]}  Rxe5 {[%clk 0:00:57]} 28. Rd3 {[%clk 0:00:30]}  Re4 {[%clk 0:00:50]} 29. Rd7 {[%clk 0:00:27]}  Rxg4+ {[%clk 0:00:50]} 30. Kf2 {[%clk 0:00:28]}  Ra4 {[%clk 0:00:47]} 31. Rxb7 {[%clk 0:00:28]}  Rxa2+ {[%clk 0:00:47]} 32. Ke3 {[%clk 0:00:28]}  Kg7 {[%clk 0:00:42]} 33. c4 {[%clk 0:00:29]}  a5 {[%clk 0:00:39]} 34. c5 {[%clk 0:00:28]}  a4 {[%clk 0:00:38]} 35. Kd4 {[%clk 0:00:20]}  a3 {[%clk 0:00:35]} 36. c6 {[%clk 0:00:19]}  Rc2 {[%clk 0:00:34]} 37. Kd5 {[%clk 0:00:18]}  a2 {[%clk 0:00:33]} 38. Ra7 {[%clk 0:00:18]}  g5 {[%clk 0:00:32]} 39. Kd6 {[%clk 0:00:17]}  g4 {[%clk 0:00:30]} 40. c7 {[%clk 0:00:17]}  g3 {[%clk 0:00:30]} 41. Rxa2 {[%clk 0:00:17]}  Rc3 {[%clk 0:00:18]} 42. Ra3 {[%clk 0:00:14]}  Rxa3 {[%clk 0:00:09]} 43. c8=Q {[%clk 0:00:14]}  g2 {[%clk 0:00:10]} 44. Qg4+ {[%clk 0:00:12]}  Kf8 {[%clk 0:00:10]} 45. Qxg2 {[%clk 0:00:12]}  Ra6+ {[%clk 0:00:11]} 46. Kd7 {[%clk 0:00:11]}  Rg6 {[%clk 0:00:12]} 47. Qb2 {[%clk 0:00:10]}  Rh6 {[%clk 0:00:10]} 48. Qe5 {[%clk 0:00:08]}  Rh1 {[%clk 0:00:07]} 49. Qe7+ {[%clk 0:00:05]}  Kg7 {[%clk 0:00:06]} 50. Qg5+ {[%clk 0:00:05]}  Kf8 {[%clk 0:00:06]} 51. Qe7+ {[%clk 0:00:04]}  Kg7 {[%clk 0:00:06]} 52. Qe2 {[%clk 0:00:04]}  Rh6 {[%clk 0:00:05]} 53. Qb2+ {[%clk 0:00:03]}  Kh7 {[%clk 0:00:06]} 54. Ke7 {[%clk 0:00:02]}  Rh3 {[%clk 0:00:05]} 55. Kxf7 {[%clk 0:00:01]}  Rf3+ {[%clk 0:00:06]} 56. Ke6 {[%clk 0:00:01]}  Rg3 {[%clk 0:00:06]} 57. Ke5 {[%clk 0:00:02]}  Rg6 {[%clk 0:00:07]} 58. Kf5 {[%clk 0:00:02]}  Kh6 {[%clk 0:00:08]} 59. Qd2+ {[%clk 0:00:02]}  Kg7 {[%clk 0:00:08]} 60. Qd4+ {[%clk 0:00:02]}  Kh7 {[%clk 0:00:08]} 61. Qh4+ {[%clk 0:00:03]}  Kg7 {[%clk 0:00:06]} 62. Qe7+ {[%clk 0:00:03]}  Kh6 {[%clk 0:00:07]} 63. Ke5 {[%clk 0:00:04]}  Rg7 {[%clk 0:00:07]} 64. Qh4+ {[%clk 0:00:03]}  Kg6 {[%clk 0:00:06]} 65. Qe4+ {[%clk 0:00:04]}  Kh6 {[%clk 0:00:06]} 66. Kf6 {[%clk 0:00:04]}  Rg1 {[%clk 0:00:04]} 67. Qh4# {[%clk 0:00:04]} 1-0


[Site "https://www.chess.com"]

[Event "Titled Tuesday Blitz September 27 Late 2022"]
[White "Xiong, Jeffery"]
[Black "Ribeiro, Matheus Mendes Domingues"]
[WhiteFideId "2047640"]
[BlackFideId "324226923"]
[WhiteElo "2714"]
[BlackElo "2047"]
[Result "1-0"]
[Round "01"]
[TimeControl "180+1"]
[Date "2022.09.27"]
[WhiteClock "0:02:31"]
[BlackClock "0:01:34"]

1. d4 {[%clk 0:02:57]}  d5 {[%clk 0:02:59]} 2. c4 {[%clk 0:02:54]}  e6 {[%clk 0:02:59]} 3. Nc3 {[%clk 0:02:54]}  Nf6 {[%clk 0:02:59]} 4. cxd5 {[%clk 0:02:53]}  exd5 {[%clk 0:02:59]} 5. Bg5 {[%clk 0:02:54]}  Be6 {[%clk 0:02:59]} 6. Bxf6 {[%clk 0:02:44]}  Qxf6 {[%clk 0:02:58]} 7. Qb3 {[%clk 0:02:44]}  Nd7 {[%clk 0:02:30]} 8. e3 {[%clk 0:02:44]}  Nb6 {[%clk 0:02:23]} 9. a4 {[%clk 0:02:44]}  a5 {[%clk 0:02:21]} 10. Bb5+ {[%clk 0:02:44]}  Kd8 {[%clk 0:02:15]} 11. Nf3 {[%clk 0:02:43]}  Bb4 {[%clk 0:02:15]} 12. O-O {[%clk 0:02:42]}  h5 {[%clk 0:02:14]} 13. Ne5 {[%clk 0:02:40]}  g5 {[%clk 0:02:13]} 14. f4 {[%clk 0:02:39]}  g4 {[%clk 0:02:11]} 15. f5 {[%clk 0:02:40]}  Bc8 {[%clk 0:02:09]} 16. Nxd5 {[%clk 0:02:39]}  Nxd5 {[%clk 0:02:09]} 17. Qxd5+ {[%clk 0:02:40]}  Ke7 {[%clk 0:02:07]} 18. Bc4 {[%clk 0:02:36]}  Rf8 {[%clk 0:01:58]} 19. Rf4 {[%clk 0:02:32]}  c6 {[%clk 0:01:47]} 20. Ng6+ {[%clk 0:02:32]}  Qxg6 {[%clk 0:01:37]} 21. Qe4+ {[%clk 0:02:31]}  Qe6 {[%clk 0:01:34]} 22. fxe6 {[%clk 0:02:31]} 1-0


[Site "https://www.chess.com"]

[Event "Titled Tuesday Blitz September 27 Late 2022"]
[White "Aggelis, Nikolaos"]
[Black "Gabrielian, Artur"]
[WhiteFideId "4213220"]
[BlackFideId "4131002"]
[WhiteElo "2154"]
[BlackElo "2467"]
[Result "0-1"]
[Round "02"]
[TimeControl "180+1"]
[Date "2022.09.28"]
[WhiteClock "0:00:30"]
[BlackClock "0:00:29"]

1. Nf3 {[%clk 0:02:51]}  Nf6 {[%clk 0:02:59]} 2. g3 {[%clk 0:02:52]}  g6 {[%clk 0:02:59]} 3. Bg2 {[%clk 0:02:52]}  Bg7 {[%clk 0:03:00]} 4. O-O {[%clk 0:02:53]}  O-O {[%clk 0:03:00]} 5. d4 {[%clk 0:02:54]}  d5 {[%clk 0:03:01]} 6. c4 {[%clk 0:02:54]}  dxc4 {[%clk 0:03:01]} 7. Na3 {[%clk 0:02:48]}  c3 {[%clk 0:03:01]} 8. bxc3 {[%clk 0:02:48]}  c5 {[%clk 0:03:02]} 9. Re1 {[%clk 0:02:47]}  Nc6 {[%clk 0:03:00]} 10. e4 {[%clk 0:02:47]}  Bg4 {[%clk 0:02:58]} 11. Bb2 {[%clk 0:02:47]}  e6 {[%clk 0:02:54]} 12. h3 {[%clk 0:02:44]}  Bxf3 {[%clk 0:02:54]} 13. Bxf3 {[%clk 0:02:45]}  Rc8 {[%clk 0:02:53]} 14. Rb1 {[%clk 0:02:44]}  b6 {[%clk 0:02:53]} 15. Bg2 {[%clk 0:02:42]}  cxd4 {[%clk 0:02:47]} 16. cxd4 {[%clk 0:02:42]}  Ne8 {[%clk 0:02:47]} 17. Nc2 {[%clk 0:02:38]}  Nd6 {[%clk 0:02:47]} 18. Ba3 {[%clk 0:02:35]}  Re8 {[%clk 0:02:46]} 19. d5 {[%clk 0:02:29]}  exd5 {[%clk 0:02:33]} 20. exd5 {[%clk 0:02:30]}  Rxe1+ {[%clk 0:02:32]} 21. Nxe1 {[%clk 0:02:31]}  Ne5 {[%clk 0:02:17]} 22. Nd3 {[%clk 0:02:23]}  Nxd3 {[%clk 0:01:49]} 23. Qxd3 {[%clk 0:02:24]}  Rc3 {[%clk 0:01:41]} 24. Qa6 {[%clk 0:02:23]}  Bd4 {[%clk 0:01:40]} 25. Bb2 {[%clk 0:02:13]}  Qf6 {[%clk 0:01:35]} 26. Bxc3 {[%clk 0:02:07]}  Qxf2+ {[%clk 0:01:32]} 27. Kh2 {[%clk 0:02:03]}  Bxc3 {[%clk 0:01:30]} 28. Rf1 {[%clk 0:01:58]}  Qd2 {[%clk 0:01:20]} 29. Qxa7 {[%clk 0:01:46]}  Be5 {[%clk 0:01:20]} 30. Qe7 {[%clk 0:01:41]}  Qe3 {[%clk 0:01:13]} 31. Qd8+ {[%clk 0:01:16]}  Kg7 {[%clk 0:01:13]} 32. Rf3 {[%clk 0:01:16]}  Qd4 {[%clk 0:01:05]} 33. a4 {[%clk 0:01:07]}  h5 {[%clk 0:01:04]} 34. h4 {[%clk 0:00:59]}  Qxa4 {[%clk 0:01:03]} 35. Qe7 {[%clk 0:00:53]}  Qd4 {[%clk 0:01:00]} 36. Rd3 {[%clk 0:00:50]}  Qb2 {[%clk 0:00:46]} 37. Rb3 {[%clk 0:00:48]}  Qe2 {[%clk 0:00:44]} 38. Qg5 {[%clk 0:00:38]}  Nf5 {[%clk 0:00:40]} 39. Rf3 {[%clk 0:00:38]}  f6 {[%clk 0:00:34]} 40. Qc1 {[%clk 0:00:35]}  Nxh4 {[%clk 0:00:31]} 41. Qf1 {[%clk 0:00:32]}  Nxf3+ {[%clk 0:00:29]} 42. Qxf3 {[%clk 0:00:33]}  Qxf3 {[%clk 0:00:29]} 43. Bxf3 {[%clk 0:00:34]}  h4 {[%clk 0:00:29]} 44. Kh3 {[%clk 0:00:33]}  Bxg3 {[%clk 0:00:27]} 45. Be2 {[%clk 0:00:33]}  f5 {[%clk 0:00:27]} 46. Bb5 {[%clk 0:00:34]}  Kf6 {[%clk 0:00:27]} 47. Be8 {[%clk 0:00:33]}  g5 {[%clk 0:00:27]} 48. Bd7 {[%clk 0:00:33]}  g4+ {[%clk 0:00:27]} 49. Kg2 {[%clk 0:00:34]}  Bd6 {[%clk 0:00:28]} 50. Bc8 {[%clk 0:00:33]}  h3+ {[%clk 0:00:28]} 51. Kf2 {[%clk 0:00:33]}  g3+ {[%clk 0:00:28]} 52. Kf3 {[%clk 0:00:30]}  g2 {[%clk 0:00:29]} 0-1


[Site "https://www.chess.com"]

[Event "Titled Tuesday Blitz September 27 Late 2022"]
[White "Bilan, Danila"]
[Black "Kamsky, Gata"]
[WhiteFideId "24161918"]
[BlackFideId "2000024"]
[WhiteElo "2164"]
[BlackElo "2666"]
[Result "0-1"]
[Round "02"]
[TimeControl "180+1"]
[Date "2022.09.27"]
[WhiteClock "0:00:04"]
[BlackClock "0:01:00"]

1. d4 {[%clk 0:03:00]}  f5 {[%clk 0:02:53]} 2. Nf3 {[%clk 0:02:58]}  Nf6 {[%clk 0:02:52]} 3. g3 {[%clk 0:02:58]}  g6 {[%clk 0:02:51]} 4. Bg2 {[%clk 0:02:59]}  Bg7 {[%clk 0:02:51]} 5. O-O {[%clk 0:03:00]}  O-O {[%clk 0:02:52]} 6. c4 {[%clk 0:03:01]}  d6 {[%clk 0:02:52]} 7. Nc3 {[%clk 0:03:01]}  c6 {[%clk 0:02:52]} 8. Qc2 {[%clk 0:03:00]}  a5 {[%clk 0:02:51]} 9. e4 {[%clk 0:03:00]}  fxe4 {[%clk 0:02:50]} 10. Nxe4 {[%clk 0:03:01]}  Na6 {[%clk 0:02:43]} 11. a3 {[%clk 0:02:44]}  Bf5 {[%clk 0:02:36]} 12. Nxf6+ {[%clk 0:02:24]}  Rxf6 {[%clk 0:02:34]} 13. Qb3 {[%clk 0:02:17]}  Qd7 {[%clk 0:02:00]} 14. Be3 {[%clk 0:02:00]}  Rff8 {[%clk 0:01:54]} 15. Rfe1 {[%clk 0:01:44]}  Nc7 {[%clk 0:01:41]} 16. Nh4 {[%clk 0:01:31]}  Be6 {[%clk 0:01:17]} 17. Qxb7 {[%clk 0:01:03]}  Rab8 {[%clk 0:01:15]} 18. Qxc6 {[%clk 0:01:02]}  Qxc6 {[%clk 0:01:15]} 19. Bxc6 {[%clk 0:01:02]}  Bxc4 {[%clk 0:01:15]} 20. Rac1 {[%clk 0:00:47]}  Bd5 {[%clk 0:01:13]} 21. Bg5 {[%clk 0:00:30]}  Bxd4 {[%clk 0:01:06]} 22. Rc2 {[%clk 0:00:10]}  Bxc6 {[%clk 0:01:02]} 23. Rxe7 {[%clk 0:00:08]}  Nd5 {[%clk 0:01:01]} 24. Rd7 {[%clk 0:00:04]}  Bxd7 {[%clk 0:01:00]} 0-1


[Site "https://www.chess.com"]